Workbook

Sheet паспорт
A1: ПАТ "УКРТРАНСГАЗ" | G1: ПАСПОРТ ФІЗИКО-ХІМІЧНИХ ПОКАЗНИКІВ ПРИРОДНОГО ГАЗУ № 603
A2: Філія "УМГ "ХАРКІВТРАНСГАЗ" | G2: переданого п/м КС Борова Первомайського ЛВУМГ філії "УМГ "Харківтрансгаз" та прийнятого ПАТ "Харківгаз"
A3: п/м КС Борова Первомайське ЛВУМГ | G3: Маршрут № 603
A4: Вимірювальна хіміко-аналітична лабораторія
A5: Свідоцтво про атестацію № 100-037/2013 дійсне до 24.10.2017 р. | K5: по газопроводу "НОВОПСКОВ-ШЕБЕЛИНКА" | V5: за період з | X5: 2017-03-01 | Z5: по | AA5: 2017-03-31
A7: Число місяця | B7: Компонентний склад, % мол. | N7: Фізико-хімічні показники газу обчислені на основі компонентного складу, 101,325 кПа | X7: Температура точки роси за вологою (Р = 3.92 МПа), °С | Y7: Температура точки роси за вуглеводнями, °С | Z7: Вміст сірководню, г/м3 | AA7: Вміст меркаптанової сірки, г/м3 | AB7: Вміст механічних домішок, г/м3
N8: Густина абсолютна, кг/м3,при 20 ºС, | O8: Температура вимірювання/згоряння при 20/25°С
B9: метан, С₁ | C9: етан, С₂ | D9: пропан, С₃ | E9: ізо-бутан, і-С₄ | F9: н-бутан, н-С₄ | G9: нео-пентан, нео-С₅ | H9: ізо-пентан, і-С₅ | I9: н-пентан, н-С₅ | J9: гексани та вищі, С₆₊ | K9: кисень, О₂ | L9: азот, N₂ | M9: діоксид вуглецю, CО₂ | O9: Теплота згоряння нижча | R9: Теплота згоряння вища | U9: Число Воббе вище
O10: ккал/м³ | P10: МДж/м³ | Q10: кВт⋅год/м³ | R10: ккал/м³ | S10: МДж/м³ | T10: кВт⋅год/м³ | U10: ккал/м³ | V10: МДж/м³ | W10: кВт⋅год/м³
A11: 1 | O11: =P11*238.8459 -> 8317.115814 | P11: 34.8221 | Q11: =P11/3.6 -> 9.672805556 | R11: =S11*238.8459 -> 9199.245377 | S11: 38.5154 | T11: =S11/3.6 -> 10.69872222 | AC11: =SUM(B11:M11)+$K$42+$N$42 -> 0
A12: 2 | O12: =P12*238.8459 -> 8317.115814 | P12: 34.8221 | Q12: 9.672805556 | R12: =S12*238.8459 -> 9199.245377 | S12: 38.5154 | T12: 10.69872222 | AC12: 0
A13: 3 | O13: 8317.115814 | P13: 34.8221 | Q13: 9.672805556 | R13: 9199.245377 | S13: 38.5154 | T13: 10.69872222 | AC13: 0 | AD13: =IF(AC13=100,"ОК"," ") -> 
A14: 4 | O14: 8317.115814 | P14: 34.8221 | Q14: 9.672805556 | R14: 9199.245377 | S14: 38.5154 | T14: 10.69872222 | AC14: 0 | AD14: =IF(AC14=100,"ОК"," ") -> 
A15: 5 | O15: 8317.115814 | P15: 34.8221 | Q15: 9.672805556 | R15: 9199.245377 | S15: 38.5154 | T15: 10.69872222 | AC15: 0
A16: 6 | O16: 8317.115814 | P16: 34.8221 | Q16: 9.672805556 | R16: 9199.245377 | S16: 38.5154 | T16: 10.69872222 | AC16: 0
A17: 7 | B17: 87.2254 | C17: 3.5073 | D17: 2.1981 | E17: 0.3929 | F17: 0.5452 | G17: 0.0077 | H17: 0.1626 | I17: 0.0923 | J17: 0.0617 | K17: 0.0125 | L17: 4.7861 | M17: 1.0082 | N17: 0.7747 | O17: 8269.633249 | P17: 34.6233 | Q17: 9.617583333 | R17: 9147.726316 | S17: 38.2997 | T17: 10.63880556 | U17: =V17*238.8459 -> 11405.84711 | V17: 47.754 | W17: =V17/3.6 -> 13.265 | X17: -8.2 | Y17: -5 | AC17: 100 | AD17: ОК
A18: 8 | O18: 8269.633249 | P18: 34.6233 | Q18: 9.617583333 | R18: 9147.726316 | S18: 38.2997 | T18: 10.63880556 | AC18: 0
A19: 9 | O19: 8269.633249 | P19: 34.6233 | Q19: 9.617583333 | R19: 9147.726316 | S19: 38.2997 | T19: 10.63880556 | AC19: 0
A20: 10 | O20: 8269.633249 | P20: 34.6233 | Q20: 9.617583333 | R20: 9147.726316 | S20: 38.2997 | T20: 10.63880556 | AC20: 0
A21: 11 | O21: 8269.633249 | P21: 34.6233 | Q21: 9.617583333 | R21: 9147.726316 | S21: 38.2997 | T21: 10.63880556 | AC21: 0
A22: 12 | O22: 8269.633249 | P22: 34.6233 | Q22: 9.617583333 | R22: 9147.726316 | S22: 38.2997 | T22: 10.63880556 | AC22: 0
A23: 13 | O23: 8269.633249 | P23: 34.6233 | Q23: 9.617583333 | R23: 9147.726316 | S23: 38.2997 | T23: 10.63880556 | AC23: 0
A24: 14 | B24: 87.9794 | C24: 3.6691 | D24: 2.3331 | E24: 0.3858 | F24: 0.515 | G24: 0.0077 | H24: 0.165 | I24: 0.0984 | J24: 0.0593 | K24: 0.0122 | L24: 4.0446 | M24: 0.7304 | N24: 0.7698 | O24: 8372.504179 | P24: 35.054 | Q24: 9.737222222 | R24: 9261.058696 | S24: 38.7742 | T24: 10.77061111 | U24: 11583.97838 | V24: 48.4998 | W24: 13.47216667 | X24: -8 | Y24: -7 | AC24: 100 | AD24: ОК
A25: 15 | O25: 8372.504179 | P25: 35.054 | Q25: 9.737222222 | R25: 9261.058696 | S25: 38.7742 | T25: 10.77061111 | AC25: 0
A26: 16 | O26: 8372.504179 | P26: 35.054 | Q26: 9.737222222 | R26: 9261.058696 | S26: 38.7742 | T26: 10.77061111 | AC26: 0
A27: 17 | O27: 8372.504179 | P27: 35.054 | Q27: 9.737222222 | R27: 9261.058696 | S27: 38.7742 | T27: 10.77061111 | AC27: 0
A28: 18 | O28: 8372.504179 | P28: 35.054 | Q28: 9.737222222 | R28: 9261.058696 | S28: 38.7742 | T28: 10.77061111 | AC28: 0
A29: 19 | O29: 8372.504179 | P29: 35.054 | Q29: 9.737222222 | R29: 9261.058696 | S29: 38.7742 | T29: 10.77061111 | AC29: 0
A30: 20 | O30: 8372.504179 | P30: 35.054 | Q30: 9.737222222 | R30: 9261.058696 | S30: 38.7742 | T30: 10.77061111 | AC30: 0 | AD30: =IF(AC30=100,"ОК"," ") -> 
A31: 21 | B31: 87.6011 | C31: 3.6262 | D31: 2.3809 | E31: 0.415 | F31: 0.581 | G31: 0.0081 | H31: 0.1445 | I31: 0.0791 | J31: 0.0554 | K31: 0.0124 | L31: 4.4823 | M31: 0.6141 | N31: 0.7716 | O31: 8356.644811 | P31: 34.9876 | Q31: 9.718777778 | R31: 9243.097484 | S31: 38.699 | T31: 10.74972222 | U31: =V31*238.8459 -> 11548.2948 | V31: 48.3504 | W31: =V31/3.6 -> 13.43066667 | X31: -14.3 | Y31: -6 | AC31: 100.0001
A32: 22 | O32: 8356.644811 | P32: 34.9876 | Q32: 9.718777778 | R32: 9243.097484 | S32: 38.699 | T32: 10.74972222 | AC32: 0
A33: 23 | O33: 8356.644811 | P33: 34.9876 | Q33: 9.718777778 | R33: 9243.097484 | S33: 38.699 | T33: 10.74972222 | AC33: 0 | AD33: =IF(AC33=100,"ОК"," ") -> 
A34: 24 | O34: 8356.644811 | P34: 34.9876 | Q34: 9.718777778 | R34: 9243.097484 | S34: 38.699 | T34: 10.74972222 | AC34: 0
A35: 25 | O35: =P35*238.8459 -> 8356.644811 | P35: 34.9876 | Q35: =P35/3.6 -> 9.718777778 | R35: =S35*238.8459 -> 9243.097484 | S35: 38.699 | T35: =S35/3.6 -> 10.74972222 | AC35: 0
A36: 26 | O36: 8356.644811 | P36: 34.9876 | Q36: 9.718777778 | R36: 9243.097484 | S36: 38.699 | T36: 10.74972222 | AC36: 0
A37: 27 | O37: 8356.644811 | P37: 34.9876 | Q37: 9.718777778 | R37: 9243.097484 | S37: 38.699 | T37: 10.74972222 | AC37: 0
A38: 28 | B38: 88.0251 | C38: 3.5011 | D38: 2.1264 | E38: 0.3575 | F38: 0.5302 | G38: 0.007 | H38: 0.1695 | I38: 0.1095 | J38: 0.0549 | K38: 0.0129 | L38: 4.0848 | M38: 1.0211 | N38: 0.77 | O38: =P38*238.8459 -> 8309.80713 | P38: 34.7915 | Q38: =P38/3.6 -> 9.664305556 | R38: 9192.892076 | S38: 38.4888 | T38: 10.69133333 | U38: =V38*238.8459 -> 11497.44451 | V38: 48.1375 | W38: =V38/3.6 -> 13.37152778 | X38: -10.4 | Y38: -7 | AC38: 100 | AD38: ОК
A39: 29 | O39: 8309.80713 | P39: 34.7915 | Q39: 9.664305556 | R39: 9192.892076 | S39: 38.4888 | T39: 10.69133333 | AC39: 0
A40: 30 | O40: 8309.80713 | P40: 34.7915 | Q40: 9.664305556 | R40: 9192.892076 | S40: 38.4888 | T40: 10.69133333 | AC40: 0
A41: 31 | O41: =P41*238.8459 -> 8309.80713 | P41: 34.7915 | Q41: =P41/3.6 -> 9.664305556 | R41: 9192.892076 | S41: 38.4888 | T41: 10.69133333 | AC41: 0
A42: Рівень одоризації відповідає чинним нормативним документам | O42: =SUMPRODUCT(O11:O41,' розрахунок'!D7:D37)/' розрахунок'!D38 -> 8326.372394 | P42: =SUMPRODUCT(P11:P41,' розрахунок'!D7:D37)/' розрахунок'!D38 -> 34.86085545 | Q42: =SUMPRODUCT(Q11:Q41,' розрахунок'!D7:D37)/' розрахунок'!D38 -> 9.683570957 | R42: =SUMPRODUCT(R11:R41,' розрахунок'!D7:D37)/' розрахунок'!D38 -> 9210.081116 | S42: =SUMPRODUCT(S11:S41,' розрахунок'!D7:D37)/' розрахунок'!D38 -> 38.56076707 | T42: =SUMPRODUCT(T11:T41,' розрахунок'!D7:D37)/' розрахунок'!D38 -> 10.71132419 | AD42: =AVERAGE(N11:N41) -> 0.771525 | AE42: =AVERAGE(O11:O41) -> 8326.883841
H43: Середньозважене значення теплоти згоряння:
B46: Головний інженер Первомайського ЛВУМГ | O46: Журавель І.В. | V46: 03.04.2017 р.
D47: Керівник підрозділу підприємства, якому підпорядкована лабораторія | O47: прізвище | R47: підпис | V47: дата
B48: Начальник лабораторії ПМ КС Борова Первомайського ЛВ УМГ | O48: Карапута В.М. | V48: =V46 -> 03.04.2017 р.
D49: Лабораторія, де здійснювались аналізи газу | O49: прізвище | R49: підпис | V49: дата
B50: Інженер І кат. групи газовимірювань та метрології | O50: Юрченко В.М. | V50: =V46 -> 03.04.2017 р.
D51: Метрологічна служба, яка визначає обсяги газу | O51: прізвище | R51: підпис | V51: дата

Sheet розрахунок
A2: Додаток до Паспорту фізико-хімічних показників природного газу по маршруту № 603
A4: Число місяця | B4: Теплота згоряння вища, МДж/м3 | C4: Харківська область | D4: Загальний обсяг газу, м3
C5: Обсяг газу переданого за добу, м3
C6: ГРС с.Лісова стінка
A7: 1 | B7: =паспорт!S11 -> 38.5154 | C7: 4119 | D7: =SUM(C7:C7) -> 4119
A8: 2 | B8: =паспорт!S12 -> 38.5154 | C8: 4062 | D8: 4062
A9: 3 | B9: =паспорт!S13 -> 38.5154 | C9: 3653 | D9: 3653
A10: 4 | B10: =паспорт!S14 -> 38.5154 | C10: 3354 | D10: 3354
A11: 5 | B11: =паспорт!S15 -> 38.5154 | C11: 3900 | D11: 3900
A12: 6 | B12: =паспорт!S16 -> 38.5154 | C12: 3451 | D12: 3451
A13: 7 | B13: =паспорт!S17 -> 38.2997 | C13: 4000 | D13: 4000
A14: 8 | B14: =паспорт!S18 -> 38.2997 | C14: 3958 | D14: 3958
A15: 9 | B15: =паспорт!S19 -> 38.2997 | C15: 3792 | D15: 3792
A16: 10 | B16: =паспорт!S20 -> 38.2997 | C16: 3456 | D16: 3456
A17: 11 | B17: =паспорт!S21 -> 38.2997 | C17: 3217 | D17: 3217
A18: 12 | B18: =паспорт!S22 -> 38.2997 | C18: 3880 | D18: 3880
A19: 13 | B19: =паспорт!S23 -> 38.2997 | C19: 4112 | D19: 4112
A20: 14 | B20: =паспорт!S24 -> 38.7742 | C20: 3725 | D20: 3725
A21: 15 | B21: =паспорт!S25 -> 38.7742 | C21: 3503 | D21: 3503
A22: 16 | B22: =паспорт!S26 -> 38.7742 | C22: 3644 | D22: 3644
A23: 17 | B23: =паспорт!S27 -> 38.7742 | C23: 3963 | D23: 3963
A24: 18 | B24: =паспорт!S28 -> 38.7742 | C24: 3498 | D24: 3498
A25: 19 | B25: =паспорт!S29 -> 38.7742 | C25: 4182 | D25: 4182
A26: 20 | B26: =паспорт!S30 -> 38.7742 | C26: 4044 | D26: 4044
A27: 21 | B27: =паспорт!S31 -> 38.699 | C27: 3768 | D27: 3768
A28: 22 | B28: =паспорт!S32 -> 38.699 | C28: 3352 | D28: 3352
A29: 23 | B29: =паспорт!S33 -> 38.699 | C29: 3020 | D29: 3020
A30: 24 | B30: =паспорт!S34 -> 38.699 | C30: 2786 | D30: 2786
A31: 25 | B31: =паспорт!S35 -> 38.699 | C31: 2929 | D31: 2929
A32: 26 | B32: =паспорт!S36 -> 38.699 | C32: 3530 | D32: 3530
A33: 27 | B33: =паспорт!S37 -> 38.699 | C33: 3728 | D33: 3728
A34: 28 | B34: =паспорт!S38 -> 38.4888 | C34: 3492 | D34: 3492
A35: 29 | B35: =паспорт!S39 -> 38.4888 | C35: 2956 | D35: 2956
A36: 30 | B36: =паспорт!S40 -> 38.4888 | C36: 3507 | D36: 3507
A37: 31 | B37: =паспорт!S41 -> 38.4888 | C37: 3175 | D37: 3175
A38: Загальний обсяг газу, м3 | C38: =SUM(C7:C37) -> 111756 | D38: =SUM(D7:D37) -> 111756
A39: Енергія, МДж | C39: =SUMPRODUCT(B7:B37,C7:C37) -> 4309397.085 | D39: =SUMPRODUCT(B7:B37,D7:D37) -> 4309397.085
A40: Теплота згоряння (середньозважене значення за місяць), МДж/м³ | C40: =C39/C38 -> 38.56076707 | D40: =D39/D38 -> 38.56076707
A41: Теплота згоряння (середньозважене значення за місяць), ккал/м³ | C41: =C40*238.8459 -> 9210.081116 | D41: =D40*238.8459 -> 9210.081116
A42: Теплота згоряння (середньозважене значення за місяць), кВт*год./м³ | C42: =C40/3.6 -> 10.71132419 | D42: =D40/3.6 -> 10.71132419

Sheet додаток
A2: Додаток до Паспорту фізико-хімічних показників природного газу №603
A4: Область | B4: ГРС, прямий споживач | C4: Cередньозважене значення вищої теплоти згоряння
C5: МДж/м³ | D5: ккал/м³ | E5: кВт*год./м³
A6: Харківська область | B6: ГРС с.Лісова стінка | C6: =' розрахунок'!C40 -> 38.56076707 | D6: =' розрахунок'!C41 -> 9210.081116 | E6: =' розрахунок'!C42 -> 10.71132419
A7: Середньозважене значення вищої теплоти згоряння по маршруту № 603 | C7: =' розрахунок'!D40 -> 38.56076707 | D7: =' розрахунок'!D41 -> 9210.081116 | E7: =' розрахунок'!D42 -> 10.71132419
A8: ,
A10: Головний інженер Первомайського ЛВУМГ | C10: Журавель І.В. | E10: 03.04.2017 р.
A11: Керівник підрозділу підприємства, якому підпорядкована лабораторія | C11: прізвище | D11: підпис | E11: дата
A12: Начальник лабораторії ПМ КС Борова Первомайського ЛВ УМГ | C12: Карапута В.М. | E12: =E10 -> 03.04.2017 р.
A13: Лабораторія, де здійснювались аналізи газу | C13: прізвище | D13: підпис | E13: дата
A14: Інженер І кат. групи газовимірювань та метрології | C14: Юрченко В.М. | E14: =E10 -> 03.04.2017 р.
A15: Метрологічна служба, яка визначає обсяги газу | C15: прізвище | D15: підпис | E15: дата

Sheet variablesList (hidden)
A1: 3 | B1: x:\gaysin | C1: 10, 11, 24, 25, 127, 128, 132, 180, 207, 215 | D1: x:\
B2: x:\Illinci
B3: x:\Talne
